[Event "Early-Titled-Tuesday-Blitz-February-20-2024"]
[Site "Chess.com"]
[Date "2024.02.20"]
[Round "5"]
[White "Supergiuly"]
[Black "dianamirza"]
[Result "1-0"]
[WhiteElo "2321"]
[BlackElo "1987"]
[TimeControl "180+1"]
[EndTime "8:55:09 PST"]
[Termination "Supergiuly won on time"]

1. g3 {[%clk 0:03:00.9]} 1... d5 {[%clk 0:02:57.3]} 2. Bg2 {[%clk 0:02:59.8]}
2... e5 {[%clk 0:02:57.4]} 3. d3 {[%clk 0:02:59.7]} 3... f5 {[%clk 0:02:56.6]}
4. Nd2 {[%clk 0:02:59.9]} 4... Nf6 {[%clk 0:02:56.1]} 5. e3 {[%clk 0:02:57.8]}
5... Bd6 {[%clk 0:02:55.5]} 6. Ne2 {[%clk 0:02:58.5]} 6... O-O {[%clk
0:02:55.5]} 7. O-O {[%clk 0:02:59.2]} 7... c6 {[%clk 0:02:54.8]} 8. f4 {[%clk
0:02:59.8]} 8... e4 {[%clk 0:02:54.8]} 9. dxe4 {[%clk 0:02:59.5]} 9... fxe4
{[%clk 0:02:54.5]} 10. b3 {[%clk 0:02:56.6]} 10... Bg4 {[%clk 0:02:54]} 11. Bb2
{[%clk 0:02:55.5]} 11... Qd7 {[%clk 0:02:53.8]} 12. Qe1 {[%clk 0:02:53]} 12...
Bh3 {[%clk 0:02:52.9]} 13. Rd1 {[%clk 0:02:47.3]} 13... Bxg2 {[%clk 0:02:51.6]}
14. Kxg2 {[%clk 0:02:48.2]} 14... Ng4 {[%clk 0:02:51.8]} 15. Nc3 {[%clk
0:02:45.3]} 15... Bc5 {[%clk 0:02:46]} 16. Ndxe4 {[%clk 0:02:34.9]} 16... Nxe3+
{[%clk 0:02:32.7]} 17. Kh1 {[%clk 0:02:32.6]} 17... Qh3 {[%clk 0:02:27.3]} 18.
Rf2 {[%clk 0:02:18.7]} 18... Nxd1 {[%clk 0:01:56.6]} 19. Nxc5 {[%clk 0:02:15]}
19... Nxf2+ {[%clk 0:01:55.8]} 20. Qxf2 {[%clk 0:02:15.9]} 20... Na6 {[%clk
0:01:53]} 21. Nxb7 {[%clk 0:02:14.6]} 21... Rae8 {[%clk 0:01:49]} 22. Ba3 {[%clk
0:02:05]} 22... Rf6 {[%clk 0:01:35]} 23. Nd6 {[%clk 0:01:46]} 23... Ree6 {[%clk
0:00:49.2]} 24. Nc8 {[%clk 0:01:41.9]} 24... Rh6 {[%clk 0:00:34.3]} 25. Ne2
{[%clk 0:01:28.9]} 25... Rxe2 {[%clk 0:00:11.8]} 26. Qxe2 {[%clk 0:01:29.8]}
26... Qxc8 {[%clk 0:00:11.5]} 27. Bb2 {[%clk 0:01:26.1]} 27... c5 {[%clk
0:00:06.7]} 28. Qe5 {[%clk 0:01:15.5]} 28... Qd7 {[%clk 0:00:04.3]} 29. Qe2
{[%clk 0:01:00.7]} 29... d4 {[%clk 0:00:04.4]} 30. Qc4+ {[%clk 0:00:56.3]} 1-0

[Event "Early-Titled-Tuesday-Blitz-February-20-2024"]
[Site "Chess.com"]
[Date "2024.02.20"]
[Round "5"]
[White "Natalya_Buksa"]
[Black "Jumbo"]
[Result "0-1"]
[WhiteElo "2598"]
[BlackElo "2825"]
[TimeControl "180+1"]
[EndTime "8:55:10 PST"]
[Termination "Jumbo won by checkmate"]

1. d4 {[%clk 0:03:00.9]} 1... Nf6 {[%clk 0:02:59.6]} 2. Nc3 {[%clk 0:03:00.6]}
2... d5 {[%clk 0:02:59]} 3. Bf4 {[%clk 0:03:01.3]} 3... a6 {[%clk 0:02:55.5]} 4.
e3 {[%clk 0:03:01.4]} 4... c5 {[%clk 0:02:52.9]} 5. Nf3 {[%clk 0:03:01.9]} 5...
cxd4 {[%clk 0:02:52.1]} 6. exd4 {[%clk 0:03:02.8]} 6... Nc6 {[%clk 0:02:50]} 7.
Ne5 {[%clk 0:03:03.1]} 7... Qb6 {[%clk 0:02:46.2]} 8. Nxc6 {[%clk 0:02:55.8]}
8... Qxc6 {[%clk 0:02:40.6]} 9. Be2 {[%clk 0:02:55.3]} 9... Bf5 {[%clk
0:02:40.5]} 10. O-O {[%clk 0:02:55.1]} 10... e6 {[%clk 0:02:40.1]} 11. Bd3
{[%clk 0:02:49.4]} 11... Bg6 {[%clk 0:02:38.5]} 12. Ne2 {[%clk 0:02:44.3]} 12...
Be7 {[%clk 0:02:35.8]} 13. a4 {[%clk 0:02:39.8]} 13... O-O {[%clk 0:02:33.9]}
14. c3 {[%clk 0:02:40.2]} 14... b5 {[%clk 0:02:33.1]} 15. axb5 {[%clk
0:02:25.1]} 15... axb5 {[%clk 0:02:34]} 16. Bxg6 {[%clk 0:02:22.7]} 16... hxg6
{[%clk 0:02:32.8]} 17. Bg5 {[%clk 0:02:23.2]} 17... b4 {[%clk 0:02:27]} 18. Qd3
{[%clk 0:02:00.4]} 18... Rfc8 {[%clk 0:02:20.8]} 19. h4 {[%clk 0:01:56.1]} 19...
Qb7 {[%clk 0:02:13.7]} 20. Rxa8 {[%clk 0:01:33.5]} 20... Rxa8 {[%clk 0:02:09.2]}
21. Nf4 {[%clk 0:01:33.1]} 21... Ra2 {[%clk 0:01:32.8]} 22. cxb4 {[%clk
0:00:32.7]} 22... Qxb4 {[%clk 0:01:19.3]} 23. h5 {[%clk 0:00:31.5]} 23... Nxh5
{[%clk 0:01:13.5]} 24. Bxe7 {[%clk 0:00:06.2]} 24... Nxf4 {[%clk 0:01:10.9]} 25.
Qb1 {[%clk 0:00:05.3]} 25... Qxb2 {[%clk 0:00:58.6]} 26. Qd1 {[%clk 0:00:05.6]}
26... Qxd4 {[%clk 0:00:54.7]} 27. Qf3 {[%clk 0:00:05.7]} 27... Qe4 {[%clk
0:00:52.2]} 28. Qb3 {[%clk 0:00:05.5]} 28... Qxg2# {[%clk 0:00:51.9]} 0-1

[Event "Early-Titled-Tuesday-Blitz-February-20-2024"]
[Site "Chess.com"]
[Date "2024.02.20"]
[Round "5"]
[White "BillCoe"]
[Black "FuenfgegenWilly"]
[Result "1-0"]
[WhiteElo "2150"]
[BlackElo "2457"]
[TimeControl "180+1"]
[EndTime "8:55:10 PST"]
[Termination "BillCoe won by checkmate"]

1. e4 {[%clk 0:03:00.9]} 1... Na6 {[%clk 0:03:00.9]} 2. Nf3 {[%clk 0:02:59.8]}
2... c6 {[%clk 0:03:01]} 3. d4 {[%clk 0:02:59.2]} 3... Nc7 {[%clk 0:03:01.9]} 4.
c3 {[%clk 0:02:59]} 4... d5 {[%clk 0:03:02.5]} 5. Bd3 {[%clk 0:02:59.1]} 5...
dxe4 {[%clk 0:03:02.2]} 6. Bxe4 {[%clk 0:02:58.7]} 6... Nf6 {[%clk 0:03:03.1]}
7. Bc2 {[%clk 0:02:58.4]} 7... Bg4 {[%clk 0:03:04]} 8. h3 {[%clk 0:02:56.8]}
8... Bh5 {[%clk 0:03:04]} 9. O-O {[%clk 0:02:56.4]} 9... e6 {[%clk 0:03:00]} 10.
Bg5 {[%clk 0:02:55.3]} 10... h6 {[%clk 0:02:59.5]} 11. Bh4 {[%clk 0:02:54.6]}
11... Bd6 {[%clk 0:02:57.1]} 12. Nbd2 {[%clk 0:02:52.2]} 12... g5 {[%clk
0:02:56.2]} 13. Bg3 {[%clk 0:02:52.2]} 13... Bxg3 {[%clk 0:02:52.8]} 14. fxg3
{[%clk 0:02:53.1]} 14... g4 {[%clk 0:02:45.3]} 15. hxg4 {[%clk 0:02:41.9]} 15...
Bxg4 {[%clk 0:02:44.4]} 16. Qe1 {[%clk 0:02:40.8]} 16... Nd7 {[%clk 0:02:08.6]}
17. Ne5 {[%clk 0:02:36.5]} 17... Nxe5 {[%clk 0:02:07.9]} 18. Qxe5 {[%clk
0:02:32.5]} 18... Rg8 {[%clk 0:01:49.8]} 19. Ne4 {[%clk 0:02:31.3]} 19... Kf8
{[%clk 0:01:33.3]} 20. Nd6 {[%clk 0:02:19.1]} 20... f5 {[%clk 0:01:30.8]} 21.
Nxf5 {[%clk 0:02:11.4]} 21... Ke8 {[%clk 0:00:58.9]} 22. Nxh6 {[%clk 0:02:01.4]}
22... Rf8 {[%clk 0:00:51.3]} 23. Rxf8+ {[%clk 0:01:55.1]} 23... Kxf8 {[%clk
0:00:52.2]} 24. Qf4+ {[%clk 0:01:46.5]} 24... Bf5 {[%clk 0:00:51.3]} 25. Nxf5
{[%clk 0:01:44]} 25... exf5 {[%clk 0:00:48.6]} 26. Qxf5+ {[%clk 0:01:43.7]}
26... Ke7 {[%clk 0:00:47.6]} 27. Re1+ {[%clk 0:01:43]} 27... Kd6 {[%clk
0:00:47.7]} 28. c4 {[%clk 0:01:23.6]} 28... b6 {[%clk 0:00:34.4]} 29. Qe5+
{[%clk 0:01:16.9]} 29... Kd7 {[%clk 0:00:34.2]} 30. Bf5+ {[%clk 0:01:16.8]}
30... Ne6 {[%clk 0:00:31]} 31. Bxe6+ {[%clk 0:01:16.2]} 31... Ke7 {[%clk
0:00:31.8]} 32. Bc8+ {[%clk 0:01:09.9]} 32... Kf8 {[%clk 0:00:32.7]} 33. Qf5+
{[%clk 0:01:07.8]} 33... Kg7 {[%clk 0:00:32.6]} 34. Qg4+ {[%clk 0:01:04.3]}
34... Kh6 {[%clk 0:00:29.9]} 35. Re6+ {[%clk 0:01:02.6]} 35... Kh7 {[%clk
0:00:29.8]} 36. Qg6+ {[%clk 0:00:59.3]} 36... Kh8 {[%clk 0:00:29.8]} 37. Re8+
{[%clk 0:00:59.1]} 37... Qxe8 {[%clk 0:00:29.3]} 38. Qxe8+ {[%clk 0:00:59.8]}
38... Kg7 {[%clk 0:00:30.1]} 39. Qe7+ {[%clk 0:00:56.8]} 39... Kh6 {[%clk
0:00:29.8]} 40. Bf5 {[%clk 0:00:55.1]} 40... Rh8 {[%clk 0:00:26.3]} 41. Qf6+
{[%clk 0:00:52.5]} 41... Kh5 {[%clk 0:00:26.4]} 42. g4# {[%clk 0:00:52.8]} 1-0

[Event "Early-Titled-Tuesday-Blitz-February-20-2024"]
[Site "Chess.com"]
[Date "2024.02.20"]
[Round "5"]
[White "BozeKat"]
[Black "carloseduar100"]
[Result "0-1"]
[WhiteElo "2124"]
[BlackElo "2334"]
[TimeControl "180+1"]
[EndTime "8:55:15 PST"]
[Termination "carloseduar100 won by checkmate"]

1. c4 {[%clk 0:02:53.4]} 1... Nf6 {[%clk 0:02:59.3]} 2. g3 {[%clk 0:02:53.4]}
2... g6 {[%clk 0:02:58.6]} 3. Bg2 {[%clk 0:02:53.8]} 3... Bg7 {[%clk 0:02:59.5]}
4. Nc3 {[%clk 0:02:52.4]} 4... O-O {[%clk 0:02:59.2]} 5. e4 {[%clk 0:02:53.1]}
5... d6 {[%clk 0:02:59.8]} 6. d3 {[%clk 0:02:53.2]} 6... Nbd7 {[%clk 0:03:00.5]}
7. Nge2 {[%clk 0:02:53.4]} 7... c5 {[%clk 0:03:01.4]} 8. O-O {[%clk 0:02:52.8]}
8... a6 {[%clk 0:03:02]} 9. a4 {[%clk 0:02:52.3]} 9... e5 {[%clk 0:03:02.3]} 10.
h3 {[%clk 0:02:49.4]} 10... Nh5 {[%clk 0:03:02.3]} 11. g4 {[%clk 0:02:38]} 11...
Nhf6 {[%clk 0:02:17.9]} 12. f4 {[%clk 0:02:31.8]} 12... h5 {[%clk 0:02:13.1]}
13. g5 {[%clk 0:02:18.7]} 13... Nh7 {[%clk 0:02:10.8]} 14. f5 {[%clk 0:02:12.9]}
14... Nxg5 {[%clk 0:01:56.9]} 15. Nd5 {[%clk 0:01:52]} 15... Nh7 {[%clk
0:01:41.2]} 16. Nec3 {[%clk 0:01:23]} 16... Ndf6 {[%clk 0:01:31.3]} 17. Nxf6+
{[%clk 0:01:11.8]} 17... Nxf6 {[%clk 0:01:25]} 18. Bg5 {[%clk 0:01:10.7]} 18...
Qb6 {[%clk 0:01:23.9]} 19. Bxf6 {[%clk 0:01:09.3]} 19... Bxf6 {[%clk 0:01:24.8]}
20. Nd5 {[%clk 0:01:09.5]} 20... Qd8 {[%clk 0:01:24.2]} 21. Qf3 {[%clk
0:00:59.1]} 21... Bg7 {[%clk 0:01:21.5]} 22. f6 {[%clk 0:00:56.7]} 22... Bh6
{[%clk 0:01:20.4]} 23. Kf2 {[%clk 0:00:37.1]} 23... Be6 {[%clk 0:01:11.5]} 24.
Ne7+ {[%clk 0:00:37]} 24... Kh7 {[%clk 0:01:09.7]} 25. h4 {[%clk 0:00:31.1]}
25... b5 {[%clk 0:01:09.6]} 26. cxb5 {[%clk 0:00:26.1]} 26... axb5 {[%clk
0:01:10.5]} 27. axb5 {[%clk 0:00:23.6]} 27... Qb6 {[%clk 0:01:10.4]} 28. Rg1
{[%clk 0:00:06.3]} 28... Qxb5 {[%clk 0:01:07.4]} 29. Qe2 {[%clk 0:00:06.2]}
29... Rxa1 {[%clk 0:01:03.1]} 30. Rxa1 {[%clk 0:00:07.1]} 30... c4 {[%clk
0:01:02.8]} 31. Bf3 {[%clk 0:00:04.2]} 31... cxd3 {[%clk 0:01:01.4]} 32. Qd1
{[%clk 0:00:03.7]} 32... Qxb2+ {[%clk 0:00:59.1]} 33. Kg3 {[%clk 0:00:03.5]}
33... Bf4# {[%clk 0:00:57.2]} 0-1

[Event "Early-Titled-Tuesday-Blitz-February-20-2024"]
[Site "Chess.com"]
[Date "2024.02.20"]
[Round "5"]
[White "BilodeauA"]
[Black "Lukianoo"]
[Result "1-0"]
[WhiteElo "3031"]
[BlackElo "2902"]
[TimeControl "180+1"]
[EndTime "8:55:19 PST"]
[Termination "BilodeauA won by resignation"]

1. e4 {[%clk 0:03:00.9]} 1... c6 {[%clk 0:03:00.2]} 2. d4 {[%clk 0:02:59.6]}
2... d5 {[%clk 0:03:00.9]} 3. e5 {[%clk 0:03:00.4]} 3... c5 {[%clk 0:02:58.3]}
4. dxc5 {[%clk 0:03:00.5]} 4... e6 {[%clk 0:02:57.6]} 5. c3 {[%clk 0:03:00.6]}
5... Bxc5 {[%clk 0:02:55.5]} 6. Qg4 {[%clk 0:02:59.9]} 6... Ne7 {[%clk
0:02:55.4]} 7. b4 {[%clk 0:02:59.3]} 7... Bb6 {[%clk 0:02:55.2]} 8. Qxg7 {[%clk
0:02:59.3]} 8... Rg8 {[%clk 0:02:55.2]} 9. Qxh7 {[%clk 0:02:59.6]} 9... Nbc6
{[%clk 0:02:54.8]} 10. Nf3 {[%clk 0:02:55]} 10... Qc7 {[%clk 0:02:54.1]} 11. Bf4
{[%clk 0:02:15.5]} 11... Bd7 {[%clk 0:02:53.1]} 12. Bg3 {[%clk 0:02:07.8]} 12...
Nxb4 {[%clk 0:02:42.9]} 13. Be2 {[%clk 0:02:05]} 13... Nbc6 {[%clk 0:02:38.6]}
14. Na3 {[%clk 0:01:47.6]} 14... a6 {[%clk 0:02:36.3]} 15. O-O {[%clk
0:01:45.6]} 15... O-O-O {[%clk 0:02:35.4]} 16. Qd3 {[%clk 0:01:34.2]} 16... Nf5
{[%clk 0:02:31.2]} 17. Rab1 {[%clk 0:01:24.2]} 17... Bc5 {[%clk 0:02:26]} 18.
Nc2 {[%clk 0:01:21.3]} 18... Rxg3 {[%clk 0:02:15.1]} 19. hxg3 {[%clk 0:01:13.3]}
19... Nxg3 {[%clk 0:02:16]} 20. Ncd4 {[%clk 0:01:02.9]} 20... Nxf1 {[%clk
0:02:12.3]} 21. Kxf1 {[%clk 0:00:53.5]} 21... Nxe5 {[%clk 0:01:58.1]} 22. Qxa6
{[%clk 0:00:49]} 22... Bc6 {[%clk 0:01:42.5]} 23. Nxe5 {[%clk 0:00:46.5]} 23...
bxa6 {[%clk 0:01:33.3]} 24. Ndxc6 {[%clk 0:00:36.8]} 24... Qxe5 {[%clk
0:00:20.5]} 25. Nxe5 {[%clk 0:00:32.2]} 25... f6 {[%clk 0:00:12.6]} 26. Bxa6+
{[%clk 0:00:32]} 26... Kc7 {[%clk 0:00:13.1]} 27. Rb7+ {[%clk 0:00:31.8]} 1-0

[Event "Early-Titled-Tuesday-Blitz-February-20-2024"]
[Site "Chess.com"]
[Date "2024.02.20"]
[Round "5"]
[White "David_George21"]
[Black "RantomOpening"]
[Result "0-1"]
[WhiteElo "2323"]
[BlackElo "2543"]
[TimeControl "180+1"]
[EndTime "8:55:19 PST"]
[Termination "RantomOpening won by resignation"]

1. e4 {[%clk 0:02:54.8]} 1... c5 {[%clk 0:03:00.2]} 2. Nf3 {[%clk 0:02:53.5]}
2... e6 {[%clk 0:03:00.4]} 3. d4 {[%clk 0:02:54.1]} 3... cxd4 {[%clk 0:03:01.3]}
4. Nxd4 {[%clk 0:02:54.6]} 4... Nf6 {[%clk 0:03:01.9]} 5. Bd3 {[%clk 0:02:52]}
5... Nc6 {[%clk 0:03:01.8]} 6. Nxc6 {[%clk 0:02:51.6]} 6... bxc6 {[%clk
0:03:02.7]} 7. Qe2 {[%clk 0:02:51.1]} 7... d5 {[%clk 0:03:01.7]} 8. e5 {[%clk
0:02:51.4]} 8... Nd7 {[%clk 0:03:01.9]} 9. O-O {[%clk 0:02:51.1]} 9... Nc5
{[%clk 0:03:02.3]} 10. c3 {[%clk 0:02:43.8]} 10... Nxd3 {[%clk 0:03:02.3]} 11.
Qxd3 {[%clk 0:02:44.7]} 11... a5 {[%clk 0:03:02.8]} 12. f4 {[%clk 0:02:44]}
12... Ba6 {[%clk 0:03:02.1]} 13. Qf3 {[%clk 0:02:38.7]} 13... Bxf1 {[%clk
0:03:01.3]} 14. Kxf1 {[%clk 0:02:39.6]} 14... Qb6 {[%clk 0:02:59.5]} 15. Nd2
{[%clk 0:02:38.3]} 15... a4 {[%clk 0:02:52.9]} 16. Ke2 {[%clk 0:02:30.1]} 16...
Bc5 {[%clk 0:02:43.4]} 17. g4 {[%clk 0:02:22.4]} 17... h5 {[%clk 0:02:32.8]} 18.
g5 {[%clk 0:02:17.4]} 18... Qb5+ {[%clk 0:02:25]} 19. Kd1 {[%clk 0:02:13.7]}
19... h4 {[%clk 0:02:22]} 20. h3 {[%clk 0:02:08.9]} 20... g6 {[%clk 0:02:18.6]}
21. Nf1 {[%clk 0:02:05.8]} 21... O-O-O {[%clk 0:02:01.9]} 22. Kc2 {[%clk
0:01:53.7]} 22... d4 {[%clk 0:01:59.6]} 23. Nd2 {[%clk 0:01:47.2]} 23... d3+
{[%clk 0:01:43.6]} 24. Kd1 {[%clk 0:01:37]} 24... Be7 {[%clk 0:01:18.5]} 25. Ne4
{[%clk 0:01:25.3]} 25... d2 {[%clk 0:01:06.1]} 26. Bxd2 {[%clk 0:01:22.4]} 26...
Qxb2 {[%clk 0:00:57.4]} 27. Rc1 {[%clk 0:01:15.9]} 27... Ba3 {[%clk 0:00:40.3]}
28. Ke2 {[%clk 0:01:03.4]} 28... Kc7 {[%clk 0:00:26.3]} 29. Nd6 {[%clk
0:00:58.3]} 29... Bxd6 {[%clk 0:00:24.8]} 30. exd6+ {[%clk 0:00:55.9]} 30...
Rxd6 {[%clk 0:00:25.7]} 31. Qe3 {[%clk 0:00:56.5]} 31... Rhd8 {[%clk 0:00:21.6]}
32. Qa7+ {[%clk 0:00:56.3]} 32... Kc8 {[%clk 0:00:20.7]} 33. Qa8+ {[%clk
0:00:44.3]} 33... Kd7 {[%clk 0:00:20.6]} 34. Qa7+ {[%clk 0:00:44]} 34... Ke8
{[%clk 0:00:20.7]} 0-1

[Event "Early-Titled-Tuesday-Blitz-February-20-2024"]
[Site "Chess.com"]
[Date "2024.02.20"]
[Round "5"]
[White "Ati1517"]
[Black "KetiTsatsalashvili"]
[Result "0-1"]
[WhiteElo "2233"]
[BlackElo "2433"]
[TimeControl "180+1"]
[EndTime "8:55:20 PST"]
[Termination "KetiTsatsalashvili won by resignation"]

1. e4 {[%clk 0:03:00.9]} 1... c5 {[%clk 0:02:59.7]} 2. Nf3 {[%clk 0:03:00.6]}
2... d6 {[%clk 0:02:59.9]} 3. d4 {[%clk 0:03:00.8]} 3... cxd4 {[%clk 0:03:00.8]}
4. Nxd4 {[%clk 0:03:00.8]} 4... Nf6 {[%clk 0:03:01.3]} 5. Nc3 {[%clk 0:03:00.3]}
5... Nc6 {[%clk 0:03:01.8]} 6. Be3 {[%clk 0:02:59.1]} 6... Ng4 {[%clk
0:03:01.3]} 7. Bb5 {[%clk 0:02:56.7]} 7... Bd7 {[%clk 0:02:58.9]} 8. Nxc6 {[%clk
0:02:50.5]} 8... Nxe3 {[%clk 0:02:52.6]} 9. fxe3 {[%clk 0:02:07.1]} 9... Bxc6
{[%clk 0:02:49.2]} 10. Bxc6+ {[%clk 0:01:54.6]} 10... bxc6 {[%clk 0:02:50.1]}
11. O-O {[%clk 0:01:52.6]} 11... g6 {[%clk 0:02:30.8]} 12. e5 {[%clk 0:01:51.4]}
12... Bh6 {[%clk 0:02:18.3]} 13. Qf3 {[%clk 0:01:48.7]} 13... O-O {[%clk
0:02:15.2]} 14. exd6 {[%clk 0:01:47.7]} 14... Qxd6 {[%clk 0:02:11.1]} 15. Ne4
{[%clk 0:01:44.1]} 15... Qe5 {[%clk 0:02:00.4]} 16. Rae1 {[%clk 0:01:09.9]}
16... Qxb2 {[%clk 0:01:48]} 17. Nc5 {[%clk 0:01:08.3]} 17... Qc3 {[%clk
0:01:34.4]} 18. Nd3 {[%clk 0:00:48.9]} 18... Bg7 {[%clk 0:01:24.4]} 19. e4
{[%clk 0:00:43.1]} 19... Qxc2 {[%clk 0:01:12.3]} 20. e5 {[%clk 0:00:42.7]} 20...
e6 {[%clk 0:01:09.5]} 21. Rc1 {[%clk 0:00:40.8]} 21... Qxa2 {[%clk 0:01:04.9]}
22. Rxc6 {[%clk 0:00:41]} 22... Qd5 {[%clk 0:00:58.5]} 23. Qxd5 {[%clk
0:00:32.4]} 23... exd5 {[%clk 0:00:59.4]} 24. Rd6 {[%clk 0:00:32.4]} 24... Rfd8
{[%clk 0:00:57.5]} 25. Rc1 {[%clk 0:00:28.7]} 25... Rxd6 {[%clk 0:00:51.4]} 26.
exd6 {[%clk 0:00:28.6]} 26... Rd8 {[%clk 0:00:50.8]} 27. Rc6 {[%clk 0:00:25.9]}
27... Bf8 {[%clk 0:00:50.4]} 28. Rc7 {[%clk 0:00:25]} 28... Bxd6 {[%clk
0:00:46.7]} 29. Rb7 {[%clk 0:00:25.9]} 29... a5 {[%clk 0:00:40.3]} 30. Rb6
{[%clk 0:00:26.8]} 30... Bc7 {[%clk 0:00:32.2]} 31. Rb7 {[%clk 0:00:27.7]} 31...
Rc8 {[%clk 0:00:30.6]} 32. Ra7 {[%clk 0:00:28.6]} 32... Bb6+ {[%clk 0:00:29.8]}
0-1

[Event "Early-Titled-Tuesday-Blitz-February-20-2024"]
[Site "Chess.com"]
[Date "2024.02.20"]
[Round "5"]
[White "Rodalquilar"]
[Black "Bigfish1995"]
[Result "0-1"]
[WhiteElo "2751"]
[BlackElo "3168"]
[TimeControl "180+1"]
[EndTime "8:55:28 PST"]
[Termination "Bigfish1995 won by resignation"]

1. d4 {[%clk 0:03:00.9]} 1... Nf6 {[%clk 0:02:04.8]} 2. Nf3 {[%clk 0:03:00.5]}
2... b6 {[%clk 0:02:01.9]} 3. Bf4 {[%clk 0:03:00.3]} 3... Bb7 {[%clk 0:01:59.1]}
4. e3 {[%clk 0:03:00.5]} 4... e6 {[%clk 0:01:57.2]} 5. Nbd2 {[%clk 0:02:58.2]}
5... Bd6 {[%clk 0:01:57.5]} 6. Bg3 {[%clk 0:02:57]} 6... Bxg3 {[%clk 0:01:51.8]}
7. hxg3 {[%clk 0:02:57.3]} 7... h6 {[%clk 0:01:52.3]} 8. Bd3 {[%clk 0:02:56.7]}
8... c5 {[%clk 0:01:52.8]} 9. c3 {[%clk 0:02:56.4]} 9... Nc6 {[%clk 0:01:50.4]}
10. a3 {[%clk 0:02:53.9]} 10... Qc7 {[%clk 0:01:42.9]} 11. e4 {[%clk 0:02:48.8]}
11... d5 {[%clk 0:01:26.6]} 12. e5 {[%clk 0:02:38.9]} 12... Nd7 {[%clk 0:01:27]}
13. g4 {[%clk 0:02:36.9]} 13... cxd4 {[%clk 0:01:16.6]} 14. cxd4 {[%clk
0:02:36.8]} 14... Nxd4 {[%clk 0:01:16.8]} 15. Nxd4 {[%clk 0:02:37]} 15... Qxe5+
{[%clk 0:01:16.8]} 16. Ne2 {[%clk 0:02:37.5]} 16... Qxb2 {[%clk 0:01:14.4]} 17.
Qc1 {[%clk 0:02:29]} 17... Nc5 {[%clk 0:01:09.9]} 18. Rh3 {[%clk 0:02:18.3]}
18... Qf6 {[%clk 0:00:57]} 19. Bb5+ {[%clk 0:02:13.6]} 19... Ke7 {[%clk
0:00:56.8]} 20. Rf3 {[%clk 0:02:07.4]} 20... Qh4 {[%clk 0:00:46.3]} 21. Qb2
{[%clk 0:02:05.2]} 21... f6 {[%clk 0:00:36.3]} 22. Rg3 {[%clk 0:01:37.3]} 22...
a6 {[%clk 0:00:30.1]} 23. Nf4 {[%clk 0:00:47.5]} 23... Qg5 {[%clk 0:00:25.5]}
24. Nd3 {[%clk 0:00:39.5]} 24... axb5 {[%clk 0:00:23.3]} 25. Nxc5 {[%clk
0:00:40]} 25... bxc5 {[%clk 0:00:22.6]} 26. Qxb5 {[%clk 0:00:40.2]} 26... Qe5+
{[%clk 0:00:22.4]} 27. Re3 {[%clk 0:00:34.5]} 27... Qxa1+ {[%clk 0:00:22.7]} 28.
Nb1 {[%clk 0:00:34.8]} 28... Rhb8 {[%clk 0:00:19.4]} 29. Qxc5+ {[%clk
0:00:34.5]} 29... Kf7 {[%clk 0:00:19.7]} 30. Qc7+ {[%clk 0:00:33.7]} 30... Kg8
{[%clk 0:00:20.1]} 31. Rb3 {[%clk 0:00:34.1]} 31... Qe5+ {[%clk 0:00:17]} 32.
Kf1 {[%clk 0:00:32.6]} 32... Qxc7 {[%clk 0:00:16.5]} 0-1

[Event "Early-Titled-Tuesday-Blitz-February-20-2024"]
[Site "Chess.com"]
[Date "2024.02.20"]
[Round "5"]
[White "HamedWafa4"]
[Black "hansen"]
[Result "1-0"]
[WhiteElo "2726"]
[BlackElo "2906"]
[TimeControl "180+1"]
[EndTime "8:55:28 PST"]
[Termination "HamedWafa4 won by resignation"]

1. e4 {[%clk 0:02:59.3]} 1... d6 {[%clk 0:03:00.1]} 2. d4 {[%clk 0:02:53.1]}
2... Nf6 {[%clk 0:03:00.3]} 3. Nc3 {[%clk 0:02:48.8]} 3... e5 {[%clk 0:03:00.8]}
4. dxe5 {[%clk 0:02:46.4]} 4... dxe5 {[%clk 0:03:00.9]} 5. Qxd8+ {[%clk
0:02:47.3]} 5... Kxd8 {[%clk 0:03:01.7]} 6. Nf3 {[%clk 0:02:48.2]} 6... Bd6
{[%clk 0:03:00.7]} 7. Bc4 {[%clk 0:02:46.7]} 7... Ke8 {[%clk 0:02:52.9]} 8. Bg5
{[%clk 0:02:41.1]} 8... Nbd7 {[%clk 0:02:52.8]} 9. O-O-O {[%clk 0:02:35.3]} 9...
a6 {[%clk 0:02:53.2]} 10. a4 {[%clk 0:02:34.9]} 10... h6 {[%clk 0:02:52]} 11.
Be3 {[%clk 0:02:21.9]} 11... Ng4 {[%clk 0:02:48.7]} 12. h3 {[%clk 0:02:15.4]}
12... Nxe3 {[%clk 0:02:46.9]} 13. fxe3 {[%clk 0:02:16.3]} 13... Nf6 {[%clk
0:02:42.3]} 14. Nh4 {[%clk 0:02:10.5]} 14... Bb4 {[%clk 0:02:22]} 15. Nd5 {[%clk
0:01:59.9]} 15... Nxd5 {[%clk 0:02:21.1]} 16. Bxd5 {[%clk 0:01:44.6]} 16... g6
{[%clk 0:01:31.3]} 17. Rhf1 {[%clk 0:01:43]} 17... Rh7 {[%clk 0:01:31.6]} 18.
Rf3 {[%clk 0:01:26]} 18... Be7 {[%clk 0:01:29.2]} 19. g3 {[%clk 0:01:20.7]}
19... c6 {[%clk 0:01:26.8]} 20. Bb3 {[%clk 0:01:19.7]} 20... Bxh3 {[%clk
0:01:27]} 21. Rh1 {[%clk 0:01:09.8]} 21... Bg4 {[%clk 0:01:24.3]} 22. Rf2 {[%clk
0:01:09.9]} 22... Bg5 {[%clk 0:01:14]} 23. Ng2 {[%clk 0:01:09.9]} 23... Rd8
{[%clk 0:01:13.1]} 24. Rhf1 {[%clk 0:01:09.7]} 24... f6 {[%clk 0:01:10.9]} 25.
a5 {[%clk 0:01:07.3]} 25... Rhd7 {[%clk 0:01:09.7]} 26. c3 {[%clk 0:01:07.8]}
26... Rd1+ {[%clk 0:01:09.1]} 27. Bxd1 {[%clk 0:01:06.6]} 27... Bh3 {[%clk
0:00:44.1]} 28. Re1 {[%clk 0:01:00.6]} 28... Be6 {[%clk 0:00:37.3]} 29. Nh4
{[%clk 0:00:59.9]} 29... Bf7 {[%clk 0:00:29]} 30. Nf3 {[%clk 0:01:00]} 30... Ke7
{[%clk 0:00:27.8]} 31. Nxg5 {[%clk 0:00:59]} 31... hxg5 {[%clk 0:00:28.7]} 32.
Rh1 {[%clk 0:00:57.2]} 32... c5 {[%clk 0:00:11]} 33. Rh7 {[%clk 0:00:54.3]}
33... c4 {[%clk 0:00:11.4]} 34. Be2 {[%clk 0:00:54.1]} 34... Rc8 {[%clk
0:00:11.6]} 35. Bg4 {[%clk 0:00:52.8]} 35... Rc6 {[%clk 0:00:10.8]} 36. Rd2
{[%clk 0:00:52.7]} 36... Rc7 {[%clk 0:00:09]} 37. Rd7+ {[%clk 0:00:50]} 37...
Rxd7 {[%clk 0:00:09.4]} 38. Bxd7 {[%clk 0:00:50.8]} 38... Kf8 {[%clk 0:00:09.4]}
39. Bc8 {[%clk 0:00:49.4]} 1-0